bitfinex/quotes_BTCUSD_20251120
["timestamp","ask_amount","ask_price","bid_price","bid_amount"]
[1763659174641,0.00999999,87110.0,87092.0,0.10934622]
[1763659174867,0.00999999,87110.0,87078.0,0.06069676]
[1763659174868,0.00999999,87100.0,87079.0,0.00658]
[1763659175075,0.00999999,87100.0,87090.0,0.10934622]
[1763659175275,0.02493,87129.0,87079.0,0.01817262]
[1763659175276,0.00999999,87110.0,87091.0,0.12312491]
[1763659175475,0.00999999,87110.0,87091.0,0.10934622]
[1763659175781,0.01012562,87110.0,87091.0,0.10934622]
[1763659176032,0.01012562,87110.0,87079.0,0.01817262]
[1763659176033,0.01012562,87110.0,87079.0,0.00658]
[1763659176302,0.01012562,87110.0,87080.0,0.01159262]
[1763659176303,0.00999999,87100.0,87080.0,0.01159262]
[1763659176474,0.00999999,87100.0,87090.0,0.10934622]
[1763659177238,0.01012562,87110.0,87091.0,0.323]
[1763659177462,0.00012563,87110.0,87091.0,0.323]
[1763659177665,0.00012563,87110.0,87090.0,0.10934622]
[1763659177666,0.01012562,87110.0,87090.0,0.10934622]
[1763659177881,0.01012562,87110.0,87091.0,0.01377869]
[1763659178084,0.01012562,87110.0,87090.0,0.12028084]
[1763659178085,0.00012563,87110.0,87090.0,0.12028084]
[1763659178419,0.01012562,87110.0,87090.0,0.12028084]
[1763659178595,0.00012563,87110.0,87104.0,0.10934622]
[1763659178778,0.00012563,87110.0,87105.0,0.01377647]
[1763659178982,0.00012563,87110.0,87106.0,0.01231227]
[1763659179161,0.00012563,87110.0,87107.0,0.01377616]
[1763659179362,0.02493,87152.0,87116.0,0.323]
[1763659179563,0.00999999,87140.0,87116.0,0.01126953]
[1763659179764,0.00999999,87130.0,87118.0,0.10934622]
[1763659179992,0.00999999,87130.0,87116.0,0.01126953]
[1763659180169,0.00999999,87130.0,87118.0,0.10934622]
[1763659180503,0.00999999,87130.0,87090.0,0.94171618]
[1763659180504,0.00999999,87120.0,87109.0,0.01126953]
[1763659180741,0.00999999,87120.0,87085.0,0.01126953]
[1763659180742,0.00999999,87100.0,87085.0,0.01126953]
[1763659180890,0.00999999,87090.0,87072.0,0.01126953]
[1763659181300,0.00999999,87090.0,87077.0,0.10934622]
[1763659181533,0.00999999,87100.0,87072.0,0.01126953]
[1763659181700,0.008773,87099.0,87077.0,0.00041936]
[1763659181898,0.00999999,87090.0,87077.0,0.00041936]
[1763659182505,0.01801049,87107.0,87078.0,0.10934622]
[1763659182724,0.01801049,87107.0,87079.0,0.44612681]
[1763659182917,0.00999999,87100.0,87079.0,0.43234622]
[1763659183134,0.00404,87106.0,87080.0,0.10934622]
[1763659183333,0.00999999,87110.0,87081.0,0.04440351]
[1763659183538,0.00404,87114.0,87094.0,0.10934622]
[1763659183770,0.00999999,87110.0,87094.0,0.01126953]
[1763659184000,0.00404,87114.0,87084.0,0.01126953]
[1763659184001,0.00999999,87100.0,87084.0,0.01126953]
[1763659184202,0.00999999,87100.0,87075.0,0.01126953]
[1763659184415,0.0528,87113.0,87085.0,0.10934622]
[1763659184588,0.00999999,87110.0,87085.0,0.10934622]
[1763659184938,0.323,87131.0,87085.0,0.10934622]
[1763659184939,0.66393846,87160.0,87099.0,0.10934622]
[1763659185132,0.0528,87138.0,87114.0,0.10934622]
[1763659185323,0.0528,87138.0,87099.0,0.10934622]
[1763659185324,0.00999999,87130.0,87108.0,0.01126953]
[1763659185528,0.00999999,87130.0,87085.0,0.10934622]
[1763659185529,0.00999999,87120.0,87095.0,0.01126953]
[1763659185686,0.00999999,87120.0,87099.0,0.10934622]
[1763659185885,0.00999999,87120.0,87095.0,0.01126953]
[1763659186087,0.00999999,87120.0,87100.0,0.10934622]
[1763659186302,1.01417214,87110.0,87100.0,0.00041936]
[1763659186511,0.05684,87109.0,87100.0,0.00041936]
[1763659187082,0.05684,87109.0,87070.0,0.01126953]
[1763659187083,0.00999999,87090.0,87070.0,0.01126953]
[1763659187287,0.00999999,87090.0,87070.0,0.00012563]
[1763659187288,0.02493,87071.0,87070.0,0.00012563]
[1763659187467,0.07773,87071.0,87070.0,0.00012563]
[1763659188031,0.07199014,87071.0,87070.0,0.00012563]
[1763659189608,0.02323014,87071.0,87070.0,0.00012563]
[1763659189794,0.07603014,87071.0,87070.0,0.00012563]
[1763659190351,0.07258468,87071.0,87070.0,0.00012563]
[1763659190575,0.01978468,87071.0,87070.0,0.00012563]
[1763659190778,0.02493,87082.0,87070.0,0.00012563]
[1763659190954,0.00999999,87080.0,87070.0,0.00012563]
[1763659191158,0.05684,87079.0,87070.0,0.00012563]
[1763659191637,0.0528,87079.0,87070.0,0.00012563]
[1763659192041,0.00404,87078.0,87070.0,0.00012563]
[1763659192680,0.0528,87077.0,87070.0,0.00012563]
[1763659193250,0.00999999,87080.0,87070.0,0.00012563]
[1763659193251,0.00404,87076.0,87070.0,0.00012563]
[1763659193772,0.0528,87075.0,87070.0,0.00012563]
[1763659194371,0.0528,87075.0,87040.0,0.01126953]
[1763659194372,0.00999999,87060.0,87040.0,0.01126953]
[1763659194573,0.38719992,87059.0,87040.0,0.01139554]
[1763659194774,0.38719992,87059.0,87041.0,0.0137866]
[1763659194979,0.38719992,87059.0,87040.0,0.01139554]
[1763659195158,0.38719992,87059.0,87041.0,0.04599318]
[1763659195361,0.38719992,87059.0,87049.0,0.10934622]
[1763659195569,0.38719992,87059.0,87041.0,0.04599318]
[1763659196083,0.41212992,87059.0,87040.0,0.01139554]
[1763659196315,0.38719992,87059.0,87040.0,0.01139554]
[1763659196516,0.00404,87058.0,87040.0,0.01139554]
[1763659198314,0.00404,87058.0,87041.0,0.10934622]
[1763659198518,0.00404,87058.0,87040.0,0.01139554]
[1763659199436,0.00404,87057.0,87041.0,0.10934622]
[1763659199852,0.38719992,87059.0,87042.0,0.02997644]
[1763659200048,0.38719992,87059.0,87042.0,0.33919]
[1763659200283,0.38719992,87059.0,87058.0,0.00025172]
[1763659200509,0.38719992,87059.0,87041.0,0.0137866]
[1763659200510,0.24015161,87059.0,87041.0,0.0137866]
[1763659200717,0.24015161,87059.0,87042.0,0.00931]
[1763659200951,0.24015161,87059.0,87043.0,0.01378628]
[1763659201164,0.24015161,87059.0,87042.0,0.00943601]
[1763659201387,0.24015161,87059.0,87044.0,0.10934622]
[1763659201600,0.24015161,87059.0,87042.0,0.0758639]
[1763659201601,0.44025161,87058.0,87042.0,0.00012601]
[1763659201810,0.44025161,87058.0,87046.0,0.10934622]
[1763659202021,0.38745161,87058.0,87043.0,0.10934622]
[1763659202236,0.00999999,87050.0,87042.0,0.00012601]
[1763659202722,0.323,87056.0,86995.0,0.01294141]
[1763659202723,0.00999999,87030.0,86995.0,0.01294141]
[1763659202924,0.323,87048.0,86995.0,0.01294141]
[1763659202925,0.00999999,87040.0,87021.0,0.10934622]
[1763659203062,0.00999999,87050.0,87022.0,0.12313583]
[1763659203270,0.00999999,87070.0,87037.0,0.323]
[1763659203458,0.00999999,87070.0,87058.0,0.10934622]
[1763659203701,0.00999999,87070.0,87039.0,0.0114891]
[1763659203702,0.00999999,87070.0,87038.0,0.00519]
[1763659203954,0.00999999,87070.0,87036.0,0.10934622]
[1763659203955,0.05244,87069.0,87036.0,0.10934622]
[1763659204170,0.00999999,87070.0,87036.0,0.10934622]
[1763659204291,0.00012585,87069.0,87055.0,0.10934622]
[1763659204485,0.00012585,87069.0,87022.0,0.11338622]
[1763659204486,0.00999999,87050.0,87024.0,0.06069676]
[1763659204691,0.00999999,87040.0,87025.0,0.10934622]
[1763659204898,0.05244,87068.0,87025.0,0.10934622]
[1763659204899,0.03557999,87060.0,87026.0,0.01378898]
[1763659205094,0.02978382,87114.0,87026.0,0.01378898]
[1763659205095,0.00404,87065.0,87040.0,0.323]
[1763659205312,0.00404,87065.0,87041.0,0.03459793]
[1763659205528,0.00404,87065.0,87043.0,0.10934622]
[1763659205764,0.00999999,87060.0,87044.0,0.10934622]
[1763659205971,0.00999999,87060.0,87031.0,0.06069676]
[1763659206213,0.00999999,87060.0,87008.0,0.10205249]
[1763659206214,0.00999999,87030.0,87014.0,0.06069676]
[1763659206454,0.05244,87059.0,87014.0,0.06069676]
[1763659206455,0.00999999,87040.0,87014.0,0.0170043]
[1763659206656,0.05244,87059.0,87014.0,0.0170043]
[1763659206657,0.00404,87051.0,87029.0,0.10934622]
[1763659206845,0.00999999,87040.0,87021.0,0.10934622]
[1763659207049,0.00999999,87030.0,87007.0,0.10934622]
[1763659207449,0.00999999,87020.0,87007.0,0.00041908]
[1763659207675,0.00404,87019.0,87007.0,0.00041908]
[1763659207931,0.02962,87019.0,87007.0,0.00041908]
[1763659208098,0.00999999,87020.0,87007.0,0.00041908]
[1763659208408,0.00999999,87050.0,87010.0,0.323]
[1763659208609,0.02558,87053.0,87011.0,0.04379553]
[1763659208610,0.00999999,87040.0,87011.0,0.04379553]
[1763659208755,0.01802236,87057.0,87012.0,0.00519]
[1763659208756,0.00999999,87050.0,87012.0,0.00519]
[1763659208956,0.00999999,87050.0,87027.0,0.10934622]
[1763659209151,0.02558,87056.0,87027.0,0.10934622]
[1763659209152,0.00404,87061.0,87028.0,0.323]
[1763659209341,0.02978382,87110.0,87059.0,0.10934622]
[1763659209342,0.01801913,87081.0,87059.0,0.10934622]
[1763659209546,0.01403999,87080.0,87059.0,0.10934622]
[1763659209787,0.00999999,87090.0,87060.0,0.33912462]
[1763659209995,0.02558,87105.0,87060.0,0.33912462]
[1763659209996,0.01801501,87100.0,87060.0,0.33912462]
[1763659210255,0.00404,87104.0,87064.0,0.0114858]
[1763659210256,0.00059585,87104.0,87064.0,0.0114858]
[1763659210463,0.00999999,87140.0,87061.0,0.01667619]
[1763659210464,0.00999999,87110.0,87103.0,0.00519]
[1763659210669,0.05244,87143.0,87103.0,0.00519]
[1763659210670,0.00012592,87104.0,87103.0,0.00519]
[1763659211051,0.00404,87137.0,87103.0,0.00519]
[1763659211257,0.00404,87137.0,87104.0,0.00507]
[1763659211258,0.00041996,87137.0,87104.0,0.00507]
[1763659211513,0.00041996,87137.0,87105.0,0.10934622]
[1763659211742,0.00041996,87137.0,87120.0,0.323]
[1763659211946,0.00041996,87137.0,87121.0,0.00507]
[1763659212107,0.00041996,87137.0,87119.0,0.10934622]
[1763659212461,0.00041996,87137.0,87106.0,0.01196062]
[1763659212462,0.00041996,87137.0,87106.0,0.33496062]
[1763659212683,0.00999999,87130.0,87106.0,0.33496062]
[1763659212932,0.00041996,87137.0,87106.0,0.33496062]
[1763659212933,0.00041996,87137.0,87129.0,0.10934622]
[1763659213126,0.00404,87177.0,87130.0,0.97784285]
[1763659213340,0.00052601,87170.0,87140.0,0.01147578]
[1763659213539,0.00052601,87170.0,87151.0,0.323]
[1763659213737,0.00052601,87170.0,87154.0,0.05210249]
[1763659214015,0.00999999,87210.0,87170.0,0.01147183]
[1763659214156,0.00012591,87210.0,87181.0,0.37510249]
[1763659214656,0.00012591,87210.0,87181.0,0.323]
[1763659214657,0.0101259,87210.0,87181.0,0.323]
[1763659214960,0.00999999,87180.0,87144.0,0.00372]
[1763659215104,0.00999999,87190.0,87169.0,0.10934622]
[1763659215300,0.00999999,87200.0,87170.0,0.323]
[1763659215525,0.00999999,87200.0,87170.0,0.32672]
[1763659215724,0.00999999,87200.0,87171.0,0.00372]
[1763659215903,0.05210249,87233.0,87171.0,0.00372]
[1763659215904,0.00999999,87220.0,87174.0,0.05210249]
[1763659216101,0.01012593,87220.0,87208.0,0.10934622]
[1763659216307,0.00012594,87220.0,87209.0,0.323]
[1763659216825,0.00012594,87220.0,87195.0,0.323]
[1763659216826,0.01012593,87220.0,87195.0,0.323]
[1763659217146,0.00012594,87220.0,87195.0,0.323]
[1763659217346,0.0004,87250.0,87194.0,0.10934622]
[1763659217347,0.0004,87250.0,87219.0,0.10934622]
[1763659217558,0.0004,87250.0,87201.0,0.323]
[1763659217559,0.00999999,87240.0,87220.0,0.10934622]
[1763659217749,0.00999999,87230.0,87221.0,0.10934622]
[1763659217916,0.05325954,87250.0,87221.0,0.10934622]
[1763659217917,0.06325953,87250.0,87221.0,0.10934622]
[1763659218118,0.06325953,87250.0,87190.0,0.65888285]
[1763659218119,0.06325953,87250.0,87186.0,0.00359]
[1763659218120,0.00999999,87240.0,87186.0,0.00359]
[1763659218335,0.05325954,87250.0,87173.0,0.00359]
[1763659218336,0.00999999,87200.0,87173.0,0.00359]
[1763659218541,0.06325954,87250.0,87160.0,0.65888285]
[1763659218542,0.00999999,87190.0,87183.0,0.10934622]
[1763659218736,0.05244,87219.0,87183.0,0.10934622]
[1763659218737,0.00999999,87210.0,87183.0,0.10934622]
[1763659219077,0.00444156,87184.0,87183.0,0.10934622]
[1763659219324,0.00444156,87184.0,87183.0,0.12028084]
[1763659219478,0.00444156,87184.0,87183.0,0.00012594]
[1763659220983,0.05688156,87184.0,87183.0,0.00012594]
[1763659221182,0.05688156,87184.0,87125.0,0.00404]
[1763659221397,0.05688156,87184.0,87110.0,0.00999999]
[1763659221398,0.00999999,87150.0,87143.0,0.10934622]
[1763659221620,0.00999999,87150.0,87129.0,0.10947223]
[1763659221621,0.00999999,87140.0,87129.0,0.10947223]
[1763659221828,0.00999999,87140.0,87130.0,0.01094722]
[1763659222027,0.00999999,87140.0,87129.0,0.10947223]
[1763659222028,0.00999999,87140.0,87129.0,0.00012601]
[1763659222435,0.00999999,87140.0,87130.0,0.10934622]
[1763659222638,0.00999999,87140.0,87129.0,0.00012601]
[1763659223317,0.00999999,87150.0,87131.0,0.10934622]
[1763659223543,0.00999999,87150.0,87132.0,0.01094722]
[1763659223754,0.00404,87160.0,87129.0,0.00012601]
[1763659223755,0.00999999,87140.0,87129.0,0.00012601]
[1763659223898,0.00999999,87160.0,87133.0,0.10934622]
[1763659224099,0.00404,87174.0,87133.0,0.10934622]
[1763659224100,0.00999999,87150.0,87147.0,0.10934622]
[1763659224302,0.00999999,87150.0,87129.0,0.00012601]
[1763659224303,0.00999999,87140.0,87129.0,0.00012601]
[1763659224513,0.00999999,87150.0,87129.0,0.00012601]
[1763659224714,0.00999999,87160.0,87129.0,0.00012601]
[1763659224922,0.00999999,87160.0,87142.0,0.323]
[1763659225130,0.00999999,87160.0,87129.0,0.00012601]
[1763659225438,0.00999999,87160.0,87139.0,0.10934622]
[1763659225640,0.00999999,87150.0,87129.0,0.00012601]
[1763659225846,0.00999999,87150.0,87137.0,0.10934622]
[1763659226051,0.00999999,87160.0,87133.0,0.10934622]
[1763659226285,0.00999999,87160.0,87147.0,0.10934622]
[1763659226492,0.00999999,87150.0,87133.0,0.10934622]
[1763659226754,0.00999999,87160.0,87134.0,0.01377189]
[1763659226978,0.00999999,87160.0,87147.0,0.10934622]
[1763659227132,0.00290348,87135.0,87134.0,0.323]
[1763659227919,0.00290348,87135.0,87129.0,0.00012601]
[1763659228121,0.05648,87134.0,87129.0,0.00012601]
[1763659228525,0.05648,87134.0,87076.0,0.10934622]
[1763659228526,0.00999999,87100.0,87076.0,0.10934622]
[1763659228721,0.00999999,87100.0,87077.0,0.01131962]
[1763659228934,0.00999999,87100.0,87090.0,0.10934622]
[1763659229210,0.00999999,87100.0,87077.0,0.01131962]
[1763659229410,0.00999999,87100.0,87076.0,0.10976618]
[1763659229411,0.00999999,87090.0,87076.0,0.00041996]
[1763659230331,0.00655528,87090.0,87076.0,0.00041996]
[1763659230770,0.00404,87112.0,87076.0,0.00041996]
[1763659230771,0.00655528,87100.0,87076.0,0.00041996]
[1763659231200,0.00655528,87090.0,87076.0,0.00041996]
[1763659231411,0.04743,87111.0,87084.0,0.10934622]
[1763659231647,0.00655528,87100.0,87085.0,0.01093462]
[1763659231863,0.00655528,87100.0,87076.0,0.00041996]
[1763659232317,0.05147,87115.0,87076.0,0.00041996]
[1763659232318,0.00655528,87090.0,87076.0,0.00041996]
[1763659232517,0.04635,87099.0,87076.0,0.00041996]
[1763659232518,0.01801086,87097.0,87076.0,0.00041996]
[1763659232739,0.00655528,87090.0,87076.0,0.00041996]
[1763659233181,0.04635,87089.0,87076.0,0.00041996]
[1763659233403,0.09550542,87089.0,87076.0,0.00041996]
[1763659233672,0.04635,87089.0,87076.0,0.00041996]
[1763659233864,0.04635,87089.0,87050.0,0.00025177]
[1763659233865,3.0,87087.0,87050.0,0.00025177]
[1763659233998,0.00655528,87060.0,87050.0,0.00037769]
[1763659234209,0.02398,87051.0,87050.0,0.00037769]
[1763659234596,0.07033,87051.0,87050.0,0.00037769]
[1763659234802,0.00655528,87030.0,87011.0,0.10934622]
[1763659235031,0.00655528,87020.0,87011.0,0.00041908]
[1763659235187,0.04635,87050.0,87011.0,0.00041908]
[1763659235188,0.00655528,87030.0,87011.0,0.00041908]
[1763659235389,0.00655528,87030.0,87012.0,0.10934622]
[1763659235593,0.01059528,87030.0,87013.0,0.12313726]
[1763659235887,0.00655528,87030.0,87011.0,0.00041908]
[1763659236104,0.00404,87038.0,87013.0,0.10934622]
[1763659236292,0.00404,87038.0,87011.0,0.00041908]
[1763659237637,3.0,87033.0,87011.0,0.00041908]
[1763659237769,0.05210249,87020.0,87011.0,0.00041908]
[1763659238173,0.05210249,87017.0,87011.0,0.00041908]
[1763659238430,0.05210249,87013.0,87011.0,0.00041908]
[1763659238589,0.10125791,87012.0,87011.0,0.00041908]
[1763659238802,0.05039,87012.0,86970.0,0.0002]
[1763659239187,0.04915542,87002.0,86970.0,0.0002]
[1763659239339,0.07033,87001.0,86970.0,0.0002]
[1763659239561,0.01384,86971.0,86970.0,0.0002]
[1763659239792,0.01788,86971.0,86970.0,0.0002]
[1763659240022,0.323,86969.0,86950.0,0.0002]
[1763659240221,0.05210249,86959.0,86950.0,0.0002]
[1763659240400,0.05210249,86957.0,86950.0,0.0002]
[1763659240688,0.04635,86958.0,86950.0,0.00032604]
[1763659240689,0.00404,86956.0,86950.0,0.00032604]
[1763659241066,0.04915542,86953.0,86950.0,0.00032604]
[1763659241277,0.01,86951.0,86891.0,0.01765]
[1763659241467,0.05210249,86954.0,86891.0,0.01765]
[1763659241468,0.02398,86933.0,86932.0,0.00022566]
[1763659241670,0.07313542,86933.0,86880.0,0.01788]
[1763659241874,0.09845249,86932.0,86880.0,0.01788]
[1763659242076,0.00404,86931.0,86880.0,0.01788]
[1763659242314,0.05039,86931.0,86888.0,0.01381088]
[1763659242469,0.04635,86931.0,86889.0,0.01381072]
[1763659242650,0.02410539,86933.0,86889.0,0.01381072]
[1763659242651,0.00404,86930.0,86889.0,0.01381072]
[1763659242851,0.02410539,86933.0,86889.0,0.01381072]
[1763659242852,0.00012539,86933.0,86911.0,0.10934622]
[1763659243065,0.001,86931.0,86912.0,0.33397462]
[1763659243237,0.001,86931.0,86913.0,0.12315313]
[1763659243446,0.001,86931.0,86913.0,0.10934622]
[1763659243641,0.001,86931.0,86920.0,0.323]
[1763659243839,0.001,86931.0,86929.0,0.323]
[1763659244087,0.07164566,87030.0,86922.0,0.33450456]
[1763659244088,0.001,86971.0,86938.0,0.01150245]
[1763659244336,0.001,86971.0,86940.0,0.323]
[1763659244337,0.00112614,86971.0,86940.0,0.323]
[1763659244492,0.00112614,86971.0,86939.0,0.01380278]
[1763659244493,0.00112614,86971.0,86950.0,0.323]
[1763659244708,0.00112614,86971.0,86970.0,0.00252011]
[1763659245286,0.00999999,87040.0,86970.0,0.00252011]
[1763659245287,0.02398,87016.0,86970.0,0.04917011]
[1763659245518,0.02398,87016.0,86971.0,0.323]
[1763659245519,0.00404,87015.0,86971.0,0.323]
[1763659245859,0.00042056,87016.0,86973.0,0.323]
[1763659246062,0.00404,87014.0,86973.0,0.323]
[1763659246634,0.00404,87014.0,86960.0,0.82343384]
[1763659246635,0.04635,87013.0,86974.0,0.10934622]
[1763659246832,0.01803274,87004.0,86975.0,0.02473168]
[1763659247040,0.01803274,87004.0,86976.0,0.10934622]
[1763659247242,0.01803274,87004.0,86977.0,0.01379675]
[1763659247467,0.01803274,87004.0,86977.0,0.03032675]
[1763659247822,0.00404,87008.0,86978.0,0.01972576]
[1763659248002,0.001,87004.0,86978.0,0.01972576]
[1763659248519,0.001,87004.0,86993.0,0.10934622]
[1763659248940,0.001,87004.0,86994.0,0.10934622]
[1763659249821,0.001,87004.0,86995.0,0.04665]
[1763659250040,0.00042056,87016.0,86995.0,0.04665]
[1763659250041,0.00042056,87016.0,87000.0,0.323]
[1763659250244,0.00042056,87016.0,87015.0,0.01726]
[1763659250669,0.00042056,87016.0,87015.0,0.06391]
[1763659250889,5.6e-07,87016.0,87015.0,0.38801198]
[1763659251115,5.6e-07,87016.0,87015.0,0.42681318]
[1763659251324,0.001,87038.0,87021.0,0.323]
[1763659251535,0.00112611,87038.0,87021.0,0.323]
[1763659251952,0.00112611,87038.0,87027.0,0.10934622]
[1763659252584,0.00112611,87038.0,87028.0,0.36965]
[1763659252800,0.00112611,87038.0,87029.0,0.04789962]
[1763659253009,0.00112611,87038.0,87029.0,0.41754962]
[1763659253252,0.00112611,87038.0,87029.0,0.09454962]
[1763659253496,0.00112611,87038.0,87030.0,0.04665]
[1763659254375,0.00112611,87038.0,87034.0,0.01148976]
[1763659254582,0.00112611,87038.0,87035.0,0.04041201]
[1763659254796,0.001,87038.0,87035.0,0.04041201]
[1763659255016,0.0180192,87073.0,87040.0,0.01148897]
[1763659255228,0.0180192,87073.0,87036.0,0.04665]
[1763659255229,0.00012601,87073.0,87060.0,0.10934622]
[1763659255440,0.00012601,87073.0,87061.0,0.01093462]
[1763659255667,0.00012601,87073.0,87061.0,0.38058462]
[1763659256086,0.00012601,87073.0,87062.0,0.36965]
[1763659256529,0.00012601,87073.0,87063.0,0.04665]
[1763659258253,0.00012601,87073.0,87061.0,0.323]
[1763659258685,0.00012601,87073.0,87061.0,0.36623462]
[1763659258786,0.00012601,87073.0,87060.0,0.10934622]
[1763659258995,0.00012601,87073.0,87049.0,0.04665]
[1763659259207,0.00012601,87073.0,87060.0,0.10934622]
[1763659259667,0.00012601,87073.0,87061.0,0.0171]
[1763659260096,0.00012601,87073.0,87062.0,0.10934622]
[1763659260306,0.00012601,87073.0,87052.0,0.0171]
[1763659260532,0.00012601,87073.0,87063.0,0.10934622]
[1763659260778,0.00012601,87073.0,87064.0,0.36965]
[1763659260975,0.00012601,87073.0,87031.0,0.00404]
[1763659261194,0.06436281,87072.0,87024.0,0.04665]
[1763659261407,0.05210249,87069.0,87024.0,0.04665]
[1763659261629,0.05210249,87069.0,87011.0,0.10934622]
[1763659261630,0.02398,87043.0,87011.0,0.10934622]
[1763659261852,0.02398,87043.0,86995.0,0.04665]
[1763659262070,0.02398,87043.0,86981.0,0.00404]
[1763659262071,0.04635,87062.0,87025.0,0.01726]
[1763659262289,0.00404,87061.0,87025.0,0.01726]
[1763659262507,0.00404,87061.0,87010.0,0.93278006]
[1763659262508,0.92469175,87060.0,87010.0,0.10934622]
[1763659262714,0.92469175,87060.0,87022.0,0.01371]
[1763659262715,0.09831249,87060.0,87022.0,0.01371]
[1763659262927,0.05210249,87058.0,86997.0,0.04432]
[1763659263133,0.04621,87059.0,86997.0,0.04432]
[1763659263134,0.05210249,87052.0,86997.0,0.04432]
[1763659263354,0.00404,87061.0,86997.0,0.04432]
[1763659263355,0.04621,87058.0,87022.0,0.01371]
[1763659263578,0.00404,87057.0,87022.0,0.01371]
[1763659263808,0.05025,87057.0,87022.0,0.01371]
[1763659264009,0.00404,87057.0,87024.0,0.04432]
[1763659264436,0.00404,87057.0,87023.0,0.323]
[1763659264437,0.00012599,87058.0,87023.0,0.323]
[1763659264662,0.00012599,87058.0,87028.0,0.04432]
[1763659264919,0.00012599,87058.0,87022.0,0.01371]
[1763659264920,0.04633599,87058.0,87022.0,0.01371]
[1763659265138,0.04633599,87058.0,86982.0,0.06069676]
[1763659265139,0.04633599,87058.0,87017.0,0.04432]
[1763659265348,0.00404,87057.0,87023.0,0.01378945]
[1763659265574,0.04633599,87058.0,87023.0,0.323]
[1763659265575,0.00012599,87058.0,87023.0,0.323]
[1763659265777,0.00404,87056.0,87026.0,0.04432]
[1763659265994,0.00404,87056.0,87011.0,0.01371]
[1763659265995,0.05210249,87055.0,87011.0,0.01371]
[1763659266215,0.05210249,87055.0,87012.0,0.0137912]
[1763659266216,0.04621,87055.0,87012.0,0.0137912]
[1763659266435,0.00012599,87058.0,87018.0,0.04432]
[1763659266647,0.00404,87054.0,87019.0,0.01379009]
[1763659266857,0.00404,87054.0,87018.0,0.04432]
[1763659266858,0.00404,87054.0,87023.0,0.323]
[1763659267064,0.00012599,87058.0,87032.0,0.04432]
[1763659267337,0.00012599,87058.0,87043.0,0.10934622]
[1763659267556,0.00012599,87058.0,87057.0,0.12644622]
[1763659267768,0.03397999,87120.0,87058.0,0.323]
[1763659267769,0.02398,87120.0,87058.0,0.323]
[1763659267987,0.00272706,87108.0,87071.0,0.323]
[1763659268206,0.00272706,87108.0,87081.0,0.323]
[1763659268425,0.00272706,87108.0,87107.0,0.0164]
[1763659268655,0.01147052,87180.0,87107.0,0.0164]
[1763659268656,0.00404,87149.0,87107.0,0.0164]
[1763659268886,0.00404,87149.0,87111.0,0.323]
[1763659268887,0.00416603,87149.0,87111.0,0.323]
[1763659269111,0.00416603,87149.0,87111.0,0.33429478]
[1763659269328,0.00416603,87149.0,87113.0,0.323]
[1763659269537,0.00416603,87149.0,87127.0,0.10934622]
[1763659269759,0.00012603,87149.0,87127.0,0.10934622]
[1763659269983,0.00012603,87149.0,87128.0,0.36732]
[1763659270198,0.00012603,87149.0,87128.0,0.323]
[1763659270424,0.00012603,87149.0,87129.0,0.0886841]
[1763659270836,0.00012603,87149.0,87148.0,0.43234622]
[1763659271057,0.00012603,87149.0,87148.0,0.443641]
[1763659271277,0.00012603,87149.0,87148.0,0.01129478]
[1763659271496,0.00012603,87149.0,87110.0,0.83343383]
[1763659271497,0.04633603,87149.0,87128.0,0.01129478]
[1763659271928,0.00012603,87149.0,87129.0,0.04432]
[1763659272149,0.00012603,87149.0,87148.0,0.10934622]
[1763659272378,0.00012603,87149.0,87148.0,0.45457562]
[1763659272599,0.01999998,87230.0,87148.0,0.45457562]
[1763659272600,0.01999998,87230.0,87149.0,0.323]
[1763659272819,0.01999998,87230.0,87148.0,0.45457562]
[1763659272820,0.01799427,87198.0,87177.0,0.02371]
[1763659273051,0.82343384,87200.0,87177.0,0.01129478]
[1763659273251,0.00999999,87210.0,87150.0,0.04432]
[1763659273252,0.22941716,87178.0,87150.0,0.01129478]
[1763659273467,0.05210249,87176.0,87135.0,0.05561478]
[1763659273684,0.00404,87177.0,87135.0,0.05561478]
[1763659273908,0.00416587,87177.0,87147.0,0.10934622]
[1763659274114,0.00012587,87177.0,87148.0,0.04432]
[1763659274338,0.00012587,87177.0,87147.0,0.01129478]
[1763659274756,0.05210249,87175.0,87138.0,0.01129478]
[1763659275206,0.00012587,87177.0,87138.0,0.01129478]
[1763659275207,0.04915542,87171.0,87139.0,0.10934622]
[1763659275415,0.05210249,87176.0,87138.0,0.01129478]
[1763659275628,0.04915542,87173.0,87138.0,0.01129478]
[1763659275834,0.05210249,87169.0,87138.0,0.01129478]
[1763659276039,0.05210249,87172.0,87139.0,0.10934622]
[1763659276040,0.01799956,87165.0,87139.0,0.10934622]
[1763659276250,0.01799956,87165.0,87139.0,0.15366622]
[1763659276474,0.01799956,87165.0,87138.0,0.01129478]
[1763659276475,0.00404,87169.0,87138.0,0.01129478]
[1763659276704,0.05210249,87159.0,87138.0,0.01129478]
[1763659276922,0.04621,87168.0,87124.0,0.04432]
[1763659277150,0.05210249,87166.0,87134.0,0.10934622]
[1763659277361,0.04621,87168.0,87135.0,0.04432]
[1763659277362,0.05210249,87168.0,87135.0,0.04432]
[1763659277775,0.01299,87186.0,87148.0,0.10934622]
[1763659277970,0.001,87169.0,87148.0,0.01129478]
[1763659278716,0.05210249,87173.0,87148.0,0.01129478]
[1763659278870,0.00404,87182.0,87148.0,0.01129478]
[1763659278871,0.05210249,87159.0,87148.0,0.01129478]
[1763659279079,0.10934622,87167.0,87104.0,0.00404]
[1763659279080,0.05210249,87167.0,87127.0,0.01129478]
[1763659279253,0.05210249,87163.0,87130.0,0.10934622]
[1763659279455,0.05210249,87163.0,87127.0,0.01129478]
[1763659279666,0.01800059,87155.0,87128.0,0.04432]
[1763659279935,0.00125695,87148.0,87135.0,0.10934622]
[1763659280211,0.37510249,87176.0,87135.0,0.10934622]
[1763659280212,0.05210249,87176.0,87136.0,0.01093462]
[1763659280481,0.01799847,87168.0,87136.0,0.0665494]
[1763659280704,0.002,87177.0,87149.0,0.10934622]
[1763659280932,0.02203395,87210.0,87176.0,0.02371]
[1763659281141,0.02245375,87210.0,87176.0,0.03500478]
[1763659281362,0.02245375,87210.0,87177.0,0.04432]
[1763659281579,0.02245375,87210.0,87165.0,0.01129478]
[1763659281580,0.82343384,87200.0,87165.0,0.01129478]
[1763659281793,0.82343384,87200.0,87149.0,0.15366622]
[1763659281794,0.05210249,87197.0,87155.0,0.01026772]
[1763659282004,3.1916896,87199.0,87155.0,0.01026772]
[1763659282005,0.04621,87199.0,87155.0,0.01026772]
[1763659282224,0.09831249,87198.0,87155.0,0.01026772]
[1763659282435,0.05210249,87186.0,87142.0,0.02371]